bitfinex/quotes_BTCUSD_20240715
["timestamp","ask_amount","ask_price","bid_price","bid_amount"]
[1721033102087,0.53449853,63162.0,63161.0,0.90743587]
[1721033102297,0.53449853,63162.0,63161.0,1.32385043]
[1721033102498,0.53449853,63162.0,63161.0,1.31024979]
[1721033102878,0.53449853,63162.0,63161.0,1.30624979]
[1721033103087,0.53449853,63162.0,63161.0,1.77095903]
[1721033103286,0.53449853,63162.0,63161.0,1.76595903]
[1721033103739,0.53449853,63162.0,63161.0,1.76687203]
[1721033103944,0.53449853,63162.0,63161.0,1.28449044]
[1721033104247,0.53449853,63162.0,63161.0,1.77186925]
[1721033104456,0.53449853,63162.0,63161.0,1.28549044]
[1721033104667,0.53449853,63162.0,63161.0,1.76286814]
[1721033105092,0.53449853,63162.0,63161.0,1.77186814]
[1721033105877,0.53449853,63162.0,63161.0,1.03978023]
[1721033106965,0.53449853,63162.0,63161.0,0.97381528]
[1721033107163,0.53449853,63162.0,63161.0,1.32476946]
[1721033107741,0.53449853,63162.0,63161.0,2.03157237]
[1721033107942,0.53449853,63162.0,63161.0,1.90257237]
[1721033108092,0.53449853,63162.0,63161.0,1.82577237]
[1721033108307,0.53449853,63162.0,63161.0,1.82977237]
[1721033108485,0.53449853,63162.0,63161.0,1.83477237]
[1721033108925,0.53449853,63162.0,63161.0,1.77187237]
[1721033109696,0.53449853,63162.0,63161.0,1.76287237]
[1721033109911,0.53449853,63162.0,63161.0,1.76787237]
[1721033110267,0.53449853,63162.0,63161.0,1.76687237]
[1721033110540,0.61529853,63162.0,63161.0,1.77187]
[1721033110678,0.61529853,63162.0,63161.0,0.80479009]
[1721033110884,0.61529853,63162.0,63161.0,0.76015793]
[1721033111296,0.61529853,63162.0,63161.0,0.66586184]
[1721033111611,0.61529853,63162.0,63161.0,1.22477039]
[1721033111612,0.53449853,63162.0,63161.0,1.22477039]
[1721033112230,0.53449853,63162.0,63161.0,1.3868883]
[1721033112438,0.53449853,63162.0,63161.0,0.93978539]
[1721033112804,0.53449853,63162.0,63161.0,0.93478539]
[1721033112930,0.53449853,63162.0,63161.0,0.93578539]
[1721033113132,0.53449853,63162.0,63161.0,0.93478539]
[1721033113341,0.67779853,63162.0,63161.0,0.79229339]
[1721033113731,0.67779853,63162.0,63161.0,0.93579166]
[1721033113903,0.67779853,63162.0,63161.0,0.79329966]
[1721033114108,0.67779853,63162.0,63161.0,0.79729966]
[1721033114265,0.67779853,63162.0,63161.0,0.79229966]
[1721033114674,0.67779853,63162.0,63161.0,0.79329966]
[1721033115257,0.67779853,63162.0,63161.0,0.70079966]
[1721033115462,0.67779853,63162.0,63161.0,0.6618688]
[1721033115686,0.67779853,63162.0,63161.0,0.31091053]
[1721033115915,0.67779853,63162.0,63161.0,0.35307378]
[1721033115916,0.65089805,63162.0,63161.0,0.35307378]
[1721033116119,0.56839805,63162.0,63161.0,0.36207378]
[1721033116320,0.56839805,63162.0,63161.0,0.87411599]
[1721033116321,0.53449853,63162.0,63161.0,0.87411599]
[1721033116553,0.53449853,63162.0,63161.0,1.2223652]
[1721033116763,0.53449853,63162.0,63161.0,1.50636201]
[1721033117000,0.53449853,63162.0,63161.0,1.52290113]
[1721033117215,0.53449853,63162.0,63161.0,1.04050544]
[1721033117418,0.53449853,63162.0,63161.0,1.51990017]
[1721033117836,0.53449853,63162.0,63161.0,1.52390017]
[1721033118036,0.53449853,63162.0,63161.0,1.51990017]
[1721033118457,0.53449853,63162.0,63161.0,1.80488517]
[1721033119025,0.53449853,63162.0,63161.0,1.80088517]
[1721033119426,0.53449853,63162.0,63161.0,1.80988517]
[1721033119855,0.53449853,63162.0,63161.0,1.80588517]
[1721033120102,0.53449853,63162.0,63161.0,1.80588401]
[1721033120906,0.53449853,63162.0,63161.0,1.92488401]
[1721033121287,0.53449853,63162.0,63161.0,1.92988401]
[1721033121482,0.53449853,63162.0,63161.0,1.92488401]
[1721033121707,0.53449853,63162.0,63161.0,1.44249044]
[1721033121937,0.53449853,63162.0,63161.0,1.92487587]
[1721033122080,0.53449853,63162.0,63161.0,1.92087587]
[1721033122487,0.53449853,63162.0,63161.0,1.92487587]
[1721033122895,0.53449853,63162.0,63161.0,1.80587587]
[1721033123333,0.53449853,63162.0,63161.0,1.32249044]
[1721033123499,0.53449853,63162.0,63161.0,1.80487037]
[1721033123675,0.53449853,63162.0,63161.0,1.80987037]
[1721033125317,0.53449853,63162.0,63161.0,1.73187037]
[1721033125964,1.36437041,63172.0,63170.0,0.82]
[1721033126187,1.36437041,63172.0,63171.0,10.32168363]
[1721033126188,1.33005379,63172.0,63171.0,10.32168363]
[1721033126400,0.00325379,63172.0,63171.0,13.07677514]
[1721033126608,4e-05,63180.0,63171.0,13.07677514]
[1721033126609,4e-05,63180.0,63177.0,2.084195]
[1721033126815,4e-05,63180.0,63177.0,3.90253836]
[1721033127037,4e-05,63180.0,63177.0,3.90239194]
[1721033127271,0.00834,63188.0,63181.0,0.687]
[1721033127475,0.00834,63188.0,63187.0,0.90806505]
[1721033127740,0.00834,63188.0,63187.0,3.71763542]
[1721033127959,0.001,63189.0,63188.0,0.16]
[1721033128168,0.005,63212.0,63208.0,1.431361]
[1721033128411,0.4946543,63210.0,63208.0,2.23911967]
[1721033128607,0.4946543,63210.0,63208.0,1.54458414]
[1721033128608,0.00834,63210.0,63208.0,1.54458414]
[1721033129040,0.00123695,63209.0,63208.0,0.96649728]
[1721033129241,0.001,63209.0,63208.0,0.96649728]
[1721033129444,0.00123695,63209.0,63208.0,0.96649728]
[1721033129622,0.00123695,63209.0,63208.0,0.0152739]
[1721033129623,0.19903695,63209.0,63208.0,0.0152739]
[1721033129828,0.40762095,63209.0,63208.0,0.0152739]
[1721033130030,0.69238995,63209.0,63201.0,0.00306353]
[1721033130159,0.00023695,63202.0,63201.0,0.00306353]
[1721033130358,0.00023695,63202.0,63201.0,0.01652354]
[1721033131444,0.00023695,63202.0,63201.0,0.02152354]
[1721033131604,0.00023695,63202.0,63201.0,0.01652354]
[1721033132013,0.00023695,63202.0,63201.0,0.02152354]
[1721033132592,0.00023695,63202.0,63201.0,0.02552354]
[1721033132836,0.00023695,63202.0,63201.0,0.02246001]
[1721033133077,0.00023695,63205.0,63201.0,0.02246001]
[1721033133287,0.001,63209.0,63208.0,0.427161]
[1721033133488,0.001,63209.0,63208.0,0.87405291]
[1721033133691,0.001,63209.0,63208.0,0.88746767]
[1721033134300,0.001,63209.0,63208.0,1.27224167]
[1721033134766,0.001,63209.0,63208.0,1.27724167]
[1721033134968,0.001,63209.0,63208.0,1.44167836]
[1721033135181,0.001,63209.0,63208.0,1.51789954]
[1721033135381,0.001,63209.0,63208.0,2.10767354]
[1721033135590,0.001,63209.0,63208.0,4.87444754]
[1721033135795,0.001,63209.0,63208.0,4.25569871]
[1721033136000,0.001,63209.0,63208.0,4.2554095]
[1721033136204,0.001,63209.0,63208.0,4.1619841]
[1721033136422,0.001,63209.0,63208.0,4.01135754]
[1721033136629,0.00834,63210.0,63209.0,2.46802305]
[1721033136779,0.00834,63210.0,63209.0,3.97907222]
[1721033136985,0.00834,63210.0,63209.0,3.96487885]
[1721033137188,0.00834,63219.0,63217.0,0.55976305]
[1721033137189,0.00474403,63218.0,63217.0,0.55976305]
[1721033137387,0.00834,63242.0,63217.0,0.55976305]
[1721033137388,0.4863143,63227.0,63225.0,0.842348]
[1721033137591,0.0777,63235.0,63225.0,1.406742]
[1721033137924,0.00834,63242.0,63225.0,2.20660455]
[1721033138119,0.00023695,63236.0,63225.0,1.93728731]
[1721033138322,0.00023695,63237.0,63225.0,2.05705036]
[1721033138754,0.00834,63242.0,63225.0,3.83213227]
[1721033138958,0.00834,63242.0,63225.0,3.89793227]
[1721033139165,0.00834,63242.0,63225.0,4.56852059]
[1721033139377,0.00834,63242.0,63227.0,2.19937905]
[1721033139590,0.00023695,63255.0,63227.0,2.19937905]
[1721033139591,0.00143,63268.0,63260.0,0.8]
[1721033139809,0.00603705,63277.0,63260.0,11.03020111]
[1721033140019,0.98684497,63294.0,63260.0,11.03020111]
[1721033140020,0.98684497,63294.0,63293.0,1.795368]
[1721033140238,0.98684497,63294.0,63293.0,9.61474453]
[1721033140449,0.91194497,63294.0,63293.0,10.61786407]
[1721033140656,2.6e-07,63304.0,63303.0,1.125373]
[1721033140871,2.6e-07,63304.0,63303.0,1.40612535]
[1721033141106,2.6e-07,63304.0,63303.0,2.42162347]
[1721033141321,0.42000026,63304.0,63303.0,0.21384118]
[1721033141527,0.42000026,63304.0,63303.0,0.49818718]
[1721033141734,0.42000026,63304.0,63303.0,0.2621098]
[1721033141937,0.42000026,63304.0,63292.0,0.2]
[1721033141938,0.42,63294.0,63292.0,0.2]
[1721033142155,0.48,63292.0,63291.0,0.04946212]
[1721033142404,0.48,63292.0,63263.0,1.03110919]
[1721033142405,0.06,63268.0,63263.0,1.03110919]
[1721033142611,0.06,63281.0,63274.0,0.2]
[1721033142612,0.057787,63275.0,63274.0,0.2]
[1721033143224,0.057787,63275.0,63257.0,0.316]
[1721033143225,0.177787,63267.0,63266.0,0.2]
[1721033143375,0.320041,63267.0,63266.0,0.2]
[1721033143569,0.345887,63267.0,63266.0,0.2]
[1721033143830,0.2663,63275.0,63266.0,0.2]
[1721033143831,0.204087,63275.0,63274.0,0.2]
[1721033144041,0.123687,63284.0,63283.0,0.2]
[1721033144217,0.123687,63284.0,63283.0,0.36211791]
[1721033144218,0.057787,63284.0,63283.0,0.36211791]
[1721033144616,0.057787,63284.0,63283.0,0.20793952]
[1721033145100,0.0804,63285.0,63283.0,0.20793952]
[1721033145299,0.0804,63285.0,63283.0,0.00793952]
[1721033145499,0.0804,63285.0,63275.0,0.2]
[1721033145500,0.142226,63280.0,63275.0,0.2]
[1721033145712,0.08105238,63279.0,63271.0,0.04910529]
[1721033145909,0.08105238,63279.0,63276.0,0.00798466]
[1721033145910,0.142227,63279.0,63276.0,0.00798466]
[1721033146114,0.142231,63278.0,63271.0,0.04910529]
[1721033146322,0.79588138,63272.0,63271.0,0.04910529]
[1721033146522,0.79588138,63272.0,63268.0,0.2]
[1721033146524,0.142249,63269.0,63268.0,0.2]
[1721033146930,0.00306353,63271.0,63268.0,0.2]
[1721033147136,0.1463,63272.0,63268.0,0.2]
[1721033147746,0.1463,63272.0,63261.0,0.11557399]
[1721033147747,0.00306353,63277.0,63276.0,0.2]
[1721033147965,0.0662,63288.0,63276.0,0.2]
[1721033147966,0.0662,63288.0,63287.0,0.2]
[1721033148159,0.01527685,63300.0,63289.0,0.54218699]
[1721033148160,0.08147685,63300.0,63289.0,0.54218699]
[1721033148376,0.08147685,63300.0,63289.0,0.2]
[1721033148377,0.08105238,63299.0,63289.0,0.2]
[1721033148581,0.08105238,63299.0,63289.0,0.20783773]
[1721033148582,0.28439,63294.0,63289.0,0.20783773]
[1721033148786,0.28439,63294.0,63289.0,0.00783773]
[1721033148787,0.517347,63290.0,63289.0,0.00783773]
[1721033148959,0.517347,63290.0,63287.0,0.6042418]
[1721033148960,0.811035,63288.0,63287.0,0.6042418]
[1721033149163,1.26125291,63288.0,63287.0,0.6042418]
[1721033149417,0.3,63287.0,63277.0,0.04959745]
[1721033149631,0.95784038,63278.0,63277.0,0.04959745]
[1721033149835,0.95784038,63278.0,63265.0,0.2]
[1721033149836,0.142256,63266.0,63265.0,0.2]
[1721033150017,0.142256,63266.0,63261.0,0.60449014]
[1721033150018,0.2881,63266.0,63261.0,0.60449014]
[1721033150267,0.430358,63266.0,63261.0,0.60449014]
[1721033150471,0.2881,63266.0,63261.0,0.60449014]
[1721033150879,0.142265,63262.0,63261.0,0.60449014]
[1721033151087,0.2881,63266.0,63261.0,0.60449014]
[1721033151297,0.2,63279.0,63261.0,0.60449014]
[1721033151298,0.2881,63273.0,63261.0,0.60449014]
[1721033151471,0.284486,63272.0,63261.0,0.60449014]
[1721033151713,0.142248,63270.0,63261.0,0.60449014]
[1721033151932,0.142253,63268.0,63261.0,0.60449014]
[1721033152182,0.284492,63271.0,63258.0,0.2]
[1721033152183,0.00306353,63263.0,63258.0,0.2]
[1721033152583,0.284503,63269.0,63258.0,0.2]
[1721033152584,0.00306353,63268.0,63258.0,0.2]
[1721033152907,0.284503,63269.0,63258.0,0.2]
[1721033152908,0.00306353,63263.0,63258.0,0.2]
[1721033153117,0.00306353,63268.0,63258.0,0.2]
[1721033153755,0.284505,63268.0,63258.0,0.2]
[1721033153990,0.142255,63267.0,63258.0,0.2]
[1721033154206,0.284519,63265.0,63258.0,0.2]
[1721033154428,0.00306353,63267.0,63258.0,0.2]
[1721033155054,0.00306353,63262.0,63258.0,0.2]
[1721033155258,0.0664,63261.0,63258.0,0.2]
[1721033155463,0.14227,63260.0,63258.0,0.2]
[1721033155670,0.0664,63261.0,63258.0,0.2]
[1721033155671,0.142272,63259.0,63258.0,0.2]
[1721033155881,0.0832,63259.0,63250.0,0.2]
[1721033156300,0.14229,63251.0,63250.0,0.2]
[1721033156714,0.08105238,63256.0,63243.0,0.2]
[1721033156715,0.284575,63253.0,63243.0,0.2]
[1721033156910,0.08105238,63256.0,63243.0,0.2]
[1721033156911,0.142305,63244.0,63243.0,0.2]
[1721033157111,0.426916,63244.0,63243.0,0.2]
[1721033157712,0.493316,63244.0,63243.0,0.2]
[1721033157943,0.493316,63244.0,63236.0,0.2]
[1721033157944,0.284619,63243.0,63236.0,0.2]
[1721033158168,0.0664,63244.0,63236.0,0.2]
[1721033158363,0.426964,63237.0,63236.0,0.2]
[1721033158499,0.142321,63237.0,63236.0,0.2]
[1721033158937,0.12,63223.0,63212.0,0.04439051]
[1721033159174,0.284699,63225.0,63208.0,0.2]
[1721033159175,0.142371,63215.0,63208.0,0.2]
[1721033159392,0.00306353,63221.0,63209.0,0.12]
[1721033161173,0.427113,63215.0,63214.0,0.00019043]
[1721033161674,0.142371,63215.0,63214.0,0.00019043]
[1721033161904,0.0806,63220.0,63214.0,0.00019043]
[1721033162107,0.14237,63216.0,63214.0,0.00019043]
[1721033162310,0.142371,63215.0,63214.0,0.00019043]
[1721033162513,0.711855,63215.0,63214.0,0.00019043]
[1721033162742,0.384725,63219.0,63214.0,0.00019043]
[1721033162743,0.284725,63219.0,63214.0,0.00019043]
[1721033162950,0.142367,63217.0,63214.0,0.00019043]
[1721033163153,0.142369,63216.0,63214.0,0.00019043]
[1721033163358,4e-05,63215.0,63214.0,0.14256343]
[1721033163561,0.04995561,63227.0,63217.0,0.06]
[1721033163562,0.19229961,63227.0,63217.0,0.06]
[1721033163769,0.04995561,63227.0,63221.0,0.12]
[1721033163972,0.04995561,63227.0,63214.0,0.20019043]
[1721033163973,0.04995561,63227.0,63225.0,0.12]
[1721033164184,0.0751,63243.0,63229.0,0.12]
[1721033164185,0.142312,63242.0,63229.0,0.12]
[1721033164384,0.1384,63243.0,63227.0,0.12]
[1721033164575,0.142323,63237.0,63227.0,0.16211791]
[1721033164778,0.142327,63235.0,63223.0,0.2]
[1721033164918,0.284643,63237.0,63223.0,0.2]
[1721033165118,0.284643,63237.0,63224.0,0.12]
[1721033165119,0.142325,63236.0,63224.0,0.12]
[1721033165316,0.142328,63234.0,63223.0,0.2]
[1721033165527,0.142336,63231.0,63217.0,0.12]
[1721033165726,0.04964355,63238.0,63218.0,0.1]
[1721033165727,0.08105238,63230.0,63218.0,0.1]
[1721033165929,0.08105238,63240.0,63216.0,0.2]
[1721033165930,0.142351,63224.0,63216.0,0.2]
[1721033166111,0.28469,63227.0,63216.0,0.2]
[1721033166327,0.142346,63226.0,63219.0,0.12]
[1721033166528,0.142342,63228.0,63219.0,0.12]
[1721033166740,0.2,63242.0,63216.0,0.2]
[1721033166741,0.2881,63241.0,63224.0,0.12]
[1721033166939,0.04917153,63232.0,63224.0,0.12]
[1721033167421,0.04917153,63232.0,63220.0,0.16211791]
[1721033167422,0.142337,63231.0,63220.0,0.28211791]
[1721033167621,0.142331,63233.0,63220.0,0.16211791]
[1721033167761,0.142327,63235.0,63221.0,0.142357]
[1721033168105,0.04941289,63233.0,63227.0,0.12]
[1721033168281,4e-05,63228.0,63227.0,0.12]
[1721033168853,4e-05,63228.0,63223.0,0.2]
[1721033169286,0.142345,63227.0,63217.0,0.12]
[1721033169533,4e-05,63228.0,63219.0,0.12]
[1721033169742,4e-05,63228.0,63218.0,0.26518144]
[1721033169743,0.14234,63229.0,63220.0,0.00306353]
[1721033169975,0.28466,63234.0,63220.0,0.00306353]
[1721033170110,0.14234,63229.0,63220.0,0.00306353]
[1721033170313,0.2114913,63236.0,63219.0,0.12]
[1721033170314,0.284653,63235.0,63219.0,0.12]
[1721033170643,0.284653,63235.0,63217.0,0.00306353]
[1721033170644,0.19169739,63236.0,63225.0,0.12]
[1721033170990,0.19169739,63236.0,63223.0,0.2]
[1721033170991,0.04937339,63236.0,63231.0,0.12]
[1721033171119,0.04937339,63236.0,63226.0,0.16518144]
[1721033171120,0.04937339,63236.0,63227.0,0.12]
[1721033171503,0.142317,63239.0,63228.0,0.00306353]
[1721033171706,0.284601,63247.0,63231.0,0.12]
[1721033171707,0.04904952,63240.0,63231.0,0.12]
[1721033172045,0.04904952,63240.0,63233.0,0.12]
[1721033172447,0.04904952,63240.0,63238.0,0.12]
[1721033172667,0.04904952,63240.0,63237.0,0.12]
[1721033172884,4e-05,63243.0,63237.0,0.12]
[1721033173089,4e-05,63243.0,63239.0,0.12]
[1721033173392,4e-05,63243.0,63242.0,0.68483]
[1721033173593,0.04940783,63250.0,63249.0,0.462294]
[1721033173795,0.4863143,63272.0,63259.0,0.12]
[1721033174002,0.4863143,63272.0,63261.0,0.06]
[1721033174003,0.6285583,63272.0,63261.0,0.06]
[1721033174219,0.349974,63275.0,63259.0,0.12]
[1721033174220,0.04971525,63267.0,63259.0,0.12]
[1721033174391,0.634448,63275.0,63269.0,0.2]
[1721033174392,0.0655,63275.0,63269.0,0.2]
[1721033174594,0.00833,63285.0,63269.0,0.2]
[1721033174595,0.284441,63282.0,63269.0,0.2]
[1721033174801,0.08463,63285.0,63271.0,0.262245]
[1721033174802,0.04987342,63272.0,63271.0,0.262245]
[1721033175035,0.00833,63285.0,63275.0,0.12]
[1721033175234,0.05778143,63285.0,63272.0,0.16211791]
[1721033175633,0.05778143,63285.0,63277.0,0.12]
[1721033175839,0.05778143,63285.0,63279.0,0.12]
[1721033176123,0.05778143,63285.0,63277.0,0.36211791]
[1721033176124,0.05778143,63285.0,63280.0,0.12]
[1721033176367,0.05778143,63285.0,63281.0,0.142222]
[1721033176368,4e-05,63282.0,63281.0,0.142222]
[1721033176526,4e-05,63282.0,63281.0,0.262222]
[1721033176726,4e-05,63282.0,63281.0,0.42433991]
[1721033176951,4e-05,63282.0,63281.0,0.35901791]
[1721033177155,4e-05,63282.0,63281.0,2.43685322]
[1721033177358,4e-05,63282.0,63281.0,2.76759504]
[1721033177564,0.00833,63285.0,63284.0,1.522312]
[1721033177736,0.00833,63285.0,63284.0,1.73180822]
[1721033177948,0.00833,63285.0,63284.0,1.83179602]
[1721033178184,0.00834,63290.0,63289.0,1.615431]
[1721033178338,0.00834,63290.0,63289.0,1.61613991]
[1721033178536,0.00834,63290.0,63289.0,0.52432191]
[1721033178740,0.00834,63290.0,63289.0,0.1]
[1721033178971,0.00834,63290.0,63288.0,0.2]
[1721033179180,0.08105238,63289.0,63288.0,0.2]
[1721033179380,0.08105238,63289.0,63280.0,0.2]
[1721033179634,0.08105238,63289.0,63281.0,0.00306353]
[1721033179850,0.00834,63290.0,63281.0,0.00306353]
[1721033179851,0.08105238,63288.0,63281.0,0.00306353]
[1721033180308,0.08086219,63288.0,63281.0,0.00306353]
[1721033180515,0.142217,63284.0,63281.0,0.00306353]
[1721033180764,0.08086219,63288.0,63274.0,0.00306353]
[1721033180994,0.08943238,63290.0,63276.0,0.00306353]
[1721033181215,0.08105238,63283.0,63276.0,0.00306353]
[1721033181417,0.0665,63284.0,63274.0,0.00306353]
[1721033181418,0.208716,63284.0,63274.0,0.00306353]
[1721033181769,0.08105238,63283.0,63274.0,0.00306353]
[1721033181984,0.284478,63274.0,63262.0,0.00306353]
[1721033182195,0.142257,63266.0,63262.0,0.00306353]
[1721033182397,0.142267,63261.0,63260.0,0.00306353]
[1721033182608,0.36211791,63275.0,63260.0,0.00306353]
[1721033182609,0.1,63273.0,63260.0,0.00306353]
[1721033182810,0.16211791,63275.0,63250.0,0.2]
[1721033182811,0.0645,63261.0,63251.0,0.00306353]
[1721033183054,0.24317029,63260.0,63251.0,0.00306353]
[1721033183296,0.24317029,63260.0,63239.0,0.1441]
[1721033183297,0.32587029,63260.0,63243.0,0.00306353]
[1721033183520,0.142281,63255.0,63243.0,0.00306353]
[1721033184060,0.18105238,63253.0,63230.0,0.2]
[1721033184301,0.142308,63244.0,63231.0,0.12306353]
[1721033184788,0.0827,63260.0,63245.0,0.2]
[1721033185009,0.142279,63256.0,63245.0,0.2]
[1721033185228,0.284549,63258.0,63245.0,0.2]
[1721033185444,0.0827,63260.0,63245.0,0.48211791]
[1721033185679,0.0827,63260.0,63246.0,0.1423]
[1721033185680,0.04970727,63258.0,63246.0,0.1423]
[1721033185883,0.04970727,63258.0,63245.0,0.48211791]
[1721033186091,0.19198227,63258.0,63245.0,0.48211791]
[1721033186293,0.04970727,63258.0,63245.0,0.48211791]
[1721033187130,0.04970727,63258.0,63246.0,0.2846]
[1721033187354,0.04970727,63258.0,63253.0,0.12]
[1721033187562,0.04970727,63258.0,63251.0,0.12]
[1721033187738,4e-05,63260.0,63251.0,0.12]
[1721033187965,4e-05,63260.0,63259.0,0.2]
[1721033188174,4e-05,63260.0,63259.0,0.36211791]
[1721033188603,4e-05,63260.0,63251.0,0.342289]
[1721033188807,4e-05,63260.0,63251.0,0.2]
[1721033189024,0.16211791,63259.0,63239.0,0.00306353]
[1721033189215,4e-05,63260.0,63239.0,0.00306353]
[1721033189216,4e-05,63260.0,63246.0,0.1423]
[1721033189451,4e-05,63260.0,63247.0,0.16211791]
[1721033189660,4e-05,63260.0,63248.0,0.00306353]
[1721033189866,4e-05,63260.0,63247.0,0.16211791]
[1721033190075,4e-05,63260.0,63250.0,0.484584]
[1721033190281,4e-05,63260.0,63251.0,0.12]
[1721033190487,4e-05,63260.0,63252.0,0.262287]
[1721033190635,4e-05,63260.0,63252.0,0.12]
[1721033190847,4e-05,63260.0,63256.0,0.12]
[1721033191045,1e-08,63262.0,63261.0,0.262267]
[1721033191243,0.0627,63275.0,63262.0,0.142264]
[1721033191595,0.0627,63275.0,63263.0,0.30437991]
[1721033191768,0.0627,63275.0,63267.0,0.2]
[1721033192162,0.00838,63290.0,63281.0,0.12]
[1721033192370,0.00838,63290.0,63280.0,0.12]
[1721033192681,0.00838,63290.0,63280.0,0.28211791]
[1721033192845,0.00838,63290.0,63283.0,0.342217]
[1721033193048,0.00838,63290.0,63284.0,0.142215]
[1721033193491,0.00838,63290.0,63283.0,0.48211791]
[1721033193492,0.00838,63290.0,63283.0,0.36211791]
[1721033193692,0.00838,63290.0,63283.0,0.2]
[1721033193894,0.00838,63290.0,63285.0,0.142212]
[1721033194121,0.00838,63290.0,63283.0,0.2]
[1721033194526,0.00838,63290.0,63289.0,0.891722]
[1721033194735,0.00838,63290.0,63289.0,0.546613]
[1721033194950,0.00838,63290.0,63289.0,0.70873091]
[1721033195991,0.00838,63290.0,63289.0,1.07123991]
[1721033197132,0.00838,63290.0,63289.0,0.42432191]
[1721033197263,0.00838,63290.0,63289.0,0.28211791]
[1721033197574,0.00838,63290.0,63284.0,0.1]
[1721033198144,0.00838,63290.0,63283.0,0.2]
[1721033198769,0.08105238,63285.0,63277.0,0.04922302]
[1721033198988,0.0658,63288.0,63277.0,0.21134093]
[1721033199198,0.0658,63288.0,63277.0,0.04922302]
[1721033199398,0.08838,63290.0,63282.0,0.2]
[1721033200239,0.08838,63290.0,63277.0,0.04922302]
[1721033200240,0.08105238,63283.0,63277.0,0.04922302]
[1721033200662,0.08105238,63283.0,63269.0,0.12]
[1721033200888,0.08838,63290.0,63268.0,0.4863143]
[1721033201101,0.08838,63290.0,63271.0,0.142244]
[1721033201102,0.284411,63289.0,63271.0,0.142244]
[1721033201304,0.142213,63286.0,63271.0,0.142244]
[1721033201512,0.08105238,63284.0,63270.0,0.16933866]
[1721033201668,0.08105238,63284.0,63270.0,0.33145657]
[1721033202041,0.08105238,63284.0,63270.0,0.47370257]
[1721033202224,0.08105238,63284.0,63270.0,0.33145657]
[1721033202359,0.230584,63290.0,63275.0,0.2]
[1721033202568,0.08105238,63284.0,63275.0,0.36211791]
[1721033202766,0.08105238,63284.0,63270.0,0.16933866]
[1721033202767,0.08105238,63277.0,63270.0,0.04933866]
[1721033203000,0.36551638,63277.0,63270.0,0.04933866]
[1721033203213,0.426735,63271.0,63270.0,0.04933866]
[1721033203420,0.67155291,63271.0,63270.0,0.04933866]
[1721033203630,0.284505,63268.0,63254.0,0.00306353]
[1721033203839,0.36554738,63270.0,63262.0,0.000913]
[1721033204283,0.22330138,63270.0,63262.0,0.000913]
[1721033204737,0.142263,63263.0,63262.0,0.000913]
[1721033205422,0.142261,63264.0,63262.0,0.000913]
[1721033205620,0.141607,63266.0,63262.0,0.000913]
[1721033205827,0.36554738,63270.0,63262.0,0.000913]
[1721033205828,0.284509,63267.0,63262.0,0.000913]
[1721033206032,0.08105238,63277.0,63262.0,0.000913]
[1721033206231,0.224945,63271.0,63262.0,0.000913]
[1721033206661,0.36719,63271.0,63262.0,0.000913]
[1721033206885,0.0827,63271.0,63262.0,0.000913]
[1721033207472,0.142247,63270.0,63262.0,0.000913]
[1721033207672,0.142263,63263.0,63262.0,0.000913]
[1721033207991,0.16211791,63269.0,63262.0,0.000913]
[1721033208216,0.142258,63266.0,63262.0,0.000913]
[1721033208414,0.44661891,63269.0,63262.0,0.000913]
[1721033208415,0.142261,63264.0,63262.0,0.000913]
[1721033208642,0.16211791,63269.0,63262.0,0.000913]
[1721033208643,0.284515,63266.0,63262.0,0.000913]
[1721033208844,0.08105238,63270.0,63262.0,0.000913]
[1721033208975,0.284515,63266.0,63262.0,0.000913]
[1721033209180,0.142262,63264.0,63262.0,0.000913]
[1721033209589,0.284512,63267.0,63262.0,0.000913]
[1721033209790,0.14226,63265.0,63262.0,0.000913]
[1721033209991,0.284505,63268.0,63262.0,0.000913]
[1721033209992,0.142263,63263.0,63262.0,0.000913]
[1721033210347,0.426789,63263.0,63262.0,0.000913]
[1721033210615,0.711315,63263.0,63262.0,0.000913]
[1721033210798,0.284535,63261.0,63250.0,0.00873477]
[1721033211003,0.0827,63271.0,63251.0,0.12]
[1721033211004,0.142265,63262.0,63251.0,0.12]
[1721033211235,0.142265,63262.0,63250.0,0.00873477]
[1721033211236,0.142265,63262.0,63252.0,0.22]
[1721033211439,0.142265,63262.0,63252.0,0.12]
[1721033211569,0.284524,63264.0,63253.0,0.12]
[1721033211769,0.19220138,63265.0,63256.0,0.12]
[1721033212155,0.04994338,63265.0,63257.0,0.16211791]
[1721033212380,4e-05,63263.0,63260.0,0.12]
[1721033212816,4e-05,63263.0,63261.0,0.00306353]
[1721033213011,0.28453,63262.0,63261.0,0.00306353]
[1721033213213,0.14227,63260.0,63250.0,0.06]
[1721033213459,0.28453,63262.0,63247.0,0.142298]
[1721033213460,0.426796,63262.0,63247.0,0.142298]
[1721033213614,0.426796,63262.0,63249.0,0.16518144]
[1721033213615,0.28453,63262.0,63249.0,0.16518144]
[1721033213814,0.142274,63258.0,63250.0,0.1]
[1721033214020,0.142267,63261.0,63250.0,0.1]
[1721033214220,0.142275,63258.0,63251.0,0.00306353]
[1721033214447,0.284538,63261.0,63251.0,0.00306353]
[1721033214448,0.142271,63260.0,63251.0,0.00306353]
[1721033214812,0.142271,63260.0,63250.0,0.1]
[1721033214981,0.284553,63257.0,63247.0,0.00306353]
[1721033215159,0.142281,63255.0,63247.0,0.10306353]
[1721033215503,0.202577,63257.0,63247.0,0.1]
[1721033215705,0.0603,63257.0,63247.0,0.1]
[1721033215861,0.284558,63256.0,63247.0,0.1]
[1721033216064,0.284558,63256.0,63244.0,0.2]
[1721033216065,0.142289,63252.0,63244.0,0.2]
[1721033216269,0.284558,63256.0,63245.0,0.12]
[1721033216270,0.142286,63253.0,63245.0,0.12]
[1721033216449,0.142282,63255.0,63246.0,0.12]
[1721033216829,4e-05,63261.0,63253.0,0.12]
[1721033217457,4e-05,63261.0,63252.0,0.2]
[1721033217656,0.142272,63259.0,63252.0,0.2]